fUSD/lending_fUSD_20260513
["ID","MTS","AMOUNT","RATE_DAILY","PERIOD"]
[422145913,1778619048000,-188.56,0.00039457,7]
[422145911,1778619048000,-967.41,0.00039455,7]
[422145906,1778619048000,-2292.25,0.00039453,7]
[422145909,1778619048000,-511.65,0.00039454,7]
[422145956,1778619048000,-511.11,0.00039669,30]
[422145947,1778619048000,-967.41,0.00039615,7]
[422145957,1778619048000,-188.56,0.0003967,30]
[422145979,1778619048000,-500.0,0.00039726,15]
[422145974,1778619048000,-500.0,0.00039726,15]
[422145977,1778619048000,-500.0,0.00039726,15]
[422145976,1778619048000,-500.0,0.00039726,15]
[422145986,1778619048000,-500.0,0.00039726,15]
[422145991,1778619048000,-500.0,0.00039726,15]
[422145998,1778619048000,-500.0,0.00039726,15]
[422145987,1778619048000,-500.0,0.00039726,15]
[422145989,1778619048000,-500.0,0.00039726,15]
[422145988,1778619048000,-500.0,0.00039726,15]
[422145997,1778619048000,-500.0,0.00039726,15]
[422145990,1778619048000,-500.0,0.00039726,15]
[422145993,1778619048000,-500.0,0.00039726,15]
[422145992,1778619048000,-500.0,0.00039726,15]
[422145996,1778619048000,-500.0,0.00039726,15]
[422145995,1778619048000,-500.0,0.00039726,15]
[422145994,1778619048000,-500.0,0.00039726,15]
[422146000,1778619048000,-500.0,0.00039726,15]
[422145999,1778619048000,-500.0,0.00039726,15]
[422146002,1778619048000,-500.0,0.00039726,15]
[422146001,1778619048000,-500.0,0.00039726,15]
[422146009,1778619048000,-500.0,0.00039726,15]
[422146011,1778619048000,-500.0,0.00039726,15]
[422146013,1778619048000,-500.0,0.00039726,15]
[422146015,1778619048000,-500.0,0.00039726,15]
[422145946,1778619048000,-2292.47,0.00039615,7]
[422146020,1778619048000,-500.0,0.00039726,15]
[422145981,1778619048000,-500.0,0.00039726,15]
[422145980,1778619048000,-500.0,0.00039726,15]
[422146018,1778619048000,-500.0,0.00039726,15]
[422145975,1778619048000,-500.0,0.00039726,15]
[422145978,1778619048000,-500.0,0.00039726,15]
[422145949,1778619048000,-188.56,0.00039617,7]
[422145948,1778619048000,-511.11,0.00039615,7]
[422145955,1778619048000,-967.41,0.00039669,30]
[422145952,1778619048000,-188.48,0.00039668,30]
[422145951,1778619048000,-968.35,0.00039667,30]
[422145950,1778619048000,-2292.25,0.00039667,30]
[422145954,1778619048000,-2292.47,0.00039668,30]
[422145953,1778619048000,-511.65,0.00039668,30]
[422145958,1778619048000,-1000.0,0.00039701,10]
[422145959,1778619048000,-2292.25,0.00039721,2]
[422145969,1778619048000,-240.50436158,0.00039722,2]
[422145972,1778619048000,-184.37314728,0.00039722,2]
[422145945,1778619048000,-188.48,0.00039615,7]
[422145970,1778619048000,-208.16949837,0.00039722,2]
[422145973,1778619048000,-188.56,0.00039723,2]
[422145985,1778619048000,-523.6438534,0.00039726,15]
[422145983,1778619048000,-500.0,0.00039726,15]
[422145984,1778619048000,-500.0,0.00039726,15]
[422145971,1778619048000,-151.62051178,0.00039722,2]
[422145968,1778619048000,-187.49512233,0.00039722,2]
[422145982,1778619048000,-500.0,0.00039726,15]
[422145965,1778619048000,-2292.47,0.00039722,2]
[422145961,1778619048000,-968.35,0.00039721,2]
[422145964,1778619048000,-188.48,0.00039722,2]
[422145963,1778619048000,-511.65,0.00039721,2]
[422145967,1778619048000,-511.11,0.00039722,2]
[422145966,1778619048000,-967.41,0.00039722,2]
[422146091,1778619049000,-968.35,0.00039881,2]
[422146093,1778619049000,-188.48,0.00039882,2]
[422146089,1778619049000,-2292.25,0.00039881,2]
[422146109,1778619049000,-163.24173127,0.00039896,2]
[422146099,1778619049000,-967.41,0.00039882,2]
[422146105,1778619049000,-198.09186508,0.0003989,2]
[422146107,1778619049000,-169.09960077,0.00039896,2]
[422146103,1778619049000,-188.56,0.00039883,2]
[422146087,1778619049000,-463.85418307,0.00039858,120]
[422146101,1778619049000,-511.11,0.00039882,2]
[422146095,1778619049000,-511.65,0.00039882,2]
[422146111,1778619049000,-171.60323892,0.00039896,2]
[422146132,1778619049000,-1112.0149,0.000399,2]
[422146113,1778619049000,-172.00697245,0.00039896,2]
[422146115,1778619049000,-190.4652277,0.00039896,2]
[422146124,1778619049000,-186.73118963,0.00039896,2]
[422146128,1778619049000,-172.39865641,0.00039896,2]
[422146120,1778619049000,-154.96430161,0.00039896,2]
[422146118,1778619049000,-157.18478724,0.00039896,2]
[422146126,1778619049000,-165.40543685,0.00039896,2]
[422146130,1778619049000,-200.26528268,0.00039896,2]
[422146122,1778619049000,-264.81825113,0.00039896,2]
[422146136,1778619049000,-1700.46916719,0.000399,2]
[422146134,1778619049000,-3300.0,0.000399,14]
[422146085,1778619049000,-1000.0,0.00039838,10]
[422146097,1778619049000,-2292.47,0.00039882,2]
[422146083,1778619049000,-188.56,0.0003983,30]
[422146054,1778619049000,-188.48,0.00039775,7]
[422146071,1778619049000,-968.35,0.00039828,30]
[422146023,1778619049000,-500.0,0.00039726,15]
[422146025,1778619049000,-500.0,0.00039726,15]
[422146027,1778619049000,-500.0,0.00039726,15]
[422146030,1778619049000,-500.0,0.00039726,15]
[422146032,1778619049000,-500.0,0.00039726,15]
[422146034,1778619049000,-250.0,0.00039726,15]
[422146036,1778619049000,-500.0,0.00039726,15]
[422146048,1778619049000,-160.24620017,0.00039768,2]
[422146038,1778619049000,-500.0,0.00039726,15]
[422146046,1778619049000,-152.06732475,0.00039768,2]
[422146040,1778619049000,-500.0,0.00039726,15]
[422146042,1778619049000,-300.0,0.00039726,120]
[422146081,1778619049000,-511.11,0.00039829,30]
[422146052,1778619049000,-968.35,0.00039774,7]
[422146057,1778619049000,-511.65,0.00039775,7]
[422146044,1778619049000,-1815.17,0.00039735,120]
[422146060,1778619049000,-2292.47,0.00039775,7]
[422146064,1778619049000,-511.11,0.00039775,7]
[422146062,1778619049000,-967.41,0.00039775,7]
[422146073,1778619049000,-188.48,0.00039828,30]
[422146139,1778619049000,-156.61639997,0.00039913,2]
[422146075,1778619049000,-511.65,0.00039828,30]
[422146079,1778619049000,-967.41,0.00039829,30]
[422146067,1778619049000,-188.56,0.00039776,7]
[422146077,1778619049000,-2292.47,0.00039828,30]
[422146069,1778619049000,-2292.25,0.00039828,30]
[422146050,1778619049000,-2292.25,0.00039774,7]
[422146141,1778619049000,-160.22329479,0.00039915,2]
[422146229,1778619049000,-1675.94929789,0.00039999,7]
[422146156,1778619049000,-967.41,0.00039936,7]
[422146213,1778619049000,-2005.9555727,0.00039999,7]
[422146215,1778619049000,-2080.17592889,0.00039999,7]
[422146226,1778619049000,-2405.55389864,0.00039999,7]
[422146219,1778619049000,-2157.14243826,0.00039999,7]
[422146217,1778619049000,-232.063881,0.00039999,30]
[422146231,1778619049000,-151.0,0.00039999,30]
[422146224,1778619049000,-2319.72410669,0.00039999,7]
[422146233,1778619049000,-151.0,0.00039999,30]
[422146154,1778619049000,-2292.47,0.00039935,7]
[422146235,1778619049000,-3486407.69456213,0.0004,120]
[422146237,1778619049000,-200.42136563,0.0004,120]
[422146240,1778619049000,-345.03434316,0.0004,30]
[422146255,1778619049000,-151.0,0.0004,30]
[422146253,1778619049000,-506.57,0.0004,15]
[422146251,1778619049000,-303.0,0.0004,30]
[422146257,1778619049000,-1000.0,0.0004,2]
[422146247,1778619049000,-214.86625456,0.0004,3]
[422146261,1778619049000,-1000.0,0.0004,2]
[422146249,1778619049000,-200.03,0.0004,16]
[422146242,1778619049000,-18035.96608286,0.0004,40]
[422146260,1778619049000,-1000.0,0.0004,2]
[422146244,1778619049000,-4641.87776804,0.0004,2]
[422146262,1778619049000,-1000.0,0.0004,2]
[422146264,1778619049000,-1000.0,0.0004,2]
[422146263,1778619049000,-1000.0,0.0004,2]
[422146211,1778619049000,-1934.38338737,0.00039999,7]
[422146209,1778619049000,-151.0,0.00039999,30]
[422146222,1778619049000,-2236.95670848,0.00039999,7]
[422146192,1778619049000,-967.41,0.00039989,30]
[422146151,1778619049000,-511.65,0.00039935,7]
[422146198,1778619049000,-188.56,0.0003999,30]
[422146143,1778619049000,-177.77777778,0.00039915,2]
[422146149,1778619049000,-188.48,0.00039935,7]
[422146147,1778619049000,-968.35,0.00039935,7]
[422146161,1778619049000,-511.11,0.00039936,7]
[422146145,1778619049000,-2292.25,0.00039935,7]
[422146163,1778619049000,-500.0,0.00039961,30]
[422146165,1778619049000,-30000.0,0.00039961,2]
[422146167,1778619049000,-26772.34407074,0.00039961,10]
[422146178,1778619049000,-1000.0,0.00039975,10]
[422146181,1778619049000,-2292.25,0.00039988,30]
[422146169,1778619049000,-143385.3924523,0.00039962,2]
[422146158,1778619049000,-188.56,0.00039936,7]
[422146172,1778619049000,-2698.8711552,0.00039962,2]
[422146176,1778619049000,-171853.0443865,0.00039962,2]
[422146196,1778619049000,-257.84665378,0.0003999,2]
[422146194,1778619049000,-511.11,0.00039989,30]
[422146205,1778619049000,-562.86777387,0.00039999,30]
[422146189,1778619049000,-2292.47,0.00039989,30]
[422146207,1778619049000,-151.0,0.00039999,30]
[422146200,1778619049000,-806.41919682,0.0003999,7]
[422146187,1778619049000,-511.65,0.00039989,30]
[422146174,1778619049000,-7768.7480114,0.00039962,2]
[422146185,1778619049000,-188.48,0.00039989,30]
[422146183,1778619049000,-968.35,0.00039988,30]
[422146203,1778619049000,-151.0,0.00039997,14]
[422146275,1778619050000,-153.846307,0.0004,30]
[422146287,1778619050000,-151.0,0.0004,30]
[422146285,1778619050000,-151.0,0.0004,30]
[422146283,1778619050000,-327.548371,0.0004,30]
[422146281,1778619050000,-327.548371,0.0004,30]
[422146282,1778619050000,-327.548371,0.0004,30]
[422146280,1778619050000,-327.548371,0.0004,30]
[422146278,1778619050000,-151.0,0.0004,30]
[422146279,1778619050000,-151.0,0.0004,30]
[422146277,1778619050000,-151.0,0.0004,30]
[422146270,1778619050000,-161.31478016,0.0004,7]
[422146276,1778619050000,-151.0,0.0004,30]
[422146284,1778619050000,-151.0,0.0004,30]
[422146274,1778619050000,-151.0,0.0004,30]
[422146272,1778619050000,-151.0,0.0004,30]
[422146271,1778619050000,-151.0,0.0004,30]
[422146269,1778619050000,-152.0,0.0004,30]
[422146268,1778619050000,-726.0,0.0004,10]
[422146267,1778619050000,-11280.99999901,0.0004,120]
[422146266,1778619050000,-150.0,0.0004,26]
[422146265,1778619050000,-801.19908054,0.0004,2]
[422146273,1778619050000,-151.0,0.0004,30]
[422146286,1778619050000,-151.0,0.0004,30]
[422146296,1778619050000,-151.0,0.0004,30]
[422146288,1778619050000,-208.2157166,0.0004,120]
[422146289,1778619050000,-208.2157166,0.0004,30]
[422146317,1778619050000,-225.902096,0.0004,30]
[422146316,1778619050000,-151.0,0.0004,30]
[422146315,1778619050000,-151.0,0.0004,30]
[422146308,1778619050000,-1154.057842,0.0004,28]
[422146312,1778619050000,-290.47951751,0.0004,2]
[422146305,1778619050000,-151.0,0.0004,30]
[422146304,1778619050000,-219.05144,0.0004,120]
[422146303,1778619050000,-219.05143,0.0004,120]
[422146306,1778619050000,-10000.7458514,0.0004,6]
[422146307,1778619050000,-1154.057842,0.0004,28]
[422146311,1778619050000,-374.81281757,0.0004,2]
[422146300,1778619050000,-448.648598,0.0004,30]
[422146301,1778619050000,-151.0,0.0004,30]
[422146298,1778619050000,-151.0,0.0004,30]
[422146299,1778619050000,-151.0,0.0004,30]
[422146297,1778619050000,-448.648598,0.0004,30]
[422146291,1778619050000,-597.427521,0.0004,7]
[422146292,1778619050000,-597.427521,0.0004,7]
[422146294,1778619050000,-448.648598,0.0004,30]
[422146293,1778619050000,-597.427521,0.0004,7]
[422146295,1778619050000,-448.648598,0.0004,30]
[422146302,1778619050000,-10000.45213678,0.0004,5]
[422146290,1778619050000,-597.427521,0.0004,7]
[422146422,1778619051000,-1003.88931415,0.0004047,50]
[422146423,1778619051000,-1059.08949648,0.0004047,50]
[422146420,1778619051000,-1089.63103995,0.0004047,50]
[422146416,1778619051000,-157.71229644,0.00040448,2]
[422146413,1778619051000,-1000.0,0.00040385,10]
[422146417,1778619051000,-2557.04200597,0.00040468,14]
[422146414,1778619051000,-1815.17,0.0004039,120]
[422146419,1778619051000,-1042.12919375,0.0004047,50]
[422146418,1778619051000,-1085.62307207,0.0004047,50]
[422146433,1778619051000,-2390.49,0.000405,14]
[422146415,1778619051000,-376.35069746,0.00040395,120]
[422146425,1778619051000,-1131.46700977,0.0004047,50]
[422146440,1778619051000,-150.0,0.00040672,2]
[422146432,1778619051000,-11355.43010481,0.000405,120]
[422146424,1778619051000,-1123.15617549,0.0004047,50]
[422146431,1778619051000,-5800.0,0.00040488,14]
[422146426,1778619051000,-1105.25768523,0.0004047,50]
[422146430,1778619051000,-457.25,0.00040486,120]
[422146421,1778619051000,-1071.63292355,0.0004047,50]
[422146427,1778619051000,-1035.48534445,0.0004047,50]
[422146429,1778619051000,-320.7,0.00040486,120]
[422146434,1778619051000,-1000.0,0.00040522,10]
[422146437,1778619051000,-235.55,0.000406,30]
[422146410,1778619051000,-500.0,0.0004032,30]
[422146439,1778619051000,-1000.0,0.00040659,10]
[422146436,1778619051000,-185.0,0.00040555,11]
[422146428,1778619051000,-1083.21874403,0.0004047,50]
[422146411,1778619051000,-500.0,0.00040333,60]
[422146397,1778619051000,-300.0,0.00040279,2]
[422146412,1778619051000,-500.0,0.00040333,60]
[422146382,1778619051000,-231.99940288,0.00040252,120]
[422146384,1778619051000,-968.39,0.00040256,7]
[422146383,1778619051000,-2292.27,0.00040256,7]
[422146389,1778619051000,-188.62,0.00040256,7]
[422146385,1778619051000,-188.63,0.00040256,7]
[422146387,1778619051000,-2292.53,0.00040256,7]
[422146388,1778619051000,-967.53,0.00040256,7]
[422146390,1778619051000,-511.11,0.00040256,7]
[422146396,1778619051000,-300.0,0.00040279,2]
[422146392,1778619051000,-300.0,0.00040279,2]
[422146394,1778619051000,-300.0,0.00040279,2]
[422146395,1778619051000,-300.0,0.00040279,2]
[422146386,1778619051000,-511.81,0.00040256,7]
[422146393,1778619051000,-300.0,0.00040279,2]
[422146391,1778619051000,-999.88,0.00040278,2]
[422146398,1778619051000,-300.0,0.00040279,2]
[422146408,1778619051000,-1000.0,0.00040313,120]
[422146401,1778619051000,-202.5,0.0004029,60]
[422146402,1778619051000,-541.3,0.0004029,60]
[422146400,1778619051000,-422.65,0.00040279,2]
[422146399,1778619051000,-300.0,0.00040279,2]
[422146406,1778619051000,-1099.0,0.000403,120]
[422146405,1778619051000,-102780.82107953,0.000403,120]
[422146404,1778619051000,-4416.93,0.0004029,60]
[422146403,1778619051000,-2254.66,0.0004029,60]
[422146407,1778619051000,-163.0,0.00040304,11]
[422146446,1778619051000,-25000.0,0.00040819,15]
[422146409,1778619051000,-500.0,0.0004032,30]
[422146445,1778619051000,-25000.0,0.0004081,15]
[422146485,1778619051000,-207.41478,0.00041,30]
[422146438,1778619051000,-330.0,0.00040608,79]
[422146475,1778619051000,-1873.45,0.00041,7]
[422146486,1778619051000,-151.0,0.00041,30]
[422146474,1778619051000,-42219.4983674,0.00041,120]
[422146477,1778619051000,-237.3289647,0.00041,60]
[422146476,1778619051000,-500.0,0.00041,30]
[422146483,1778619051000,-64800.6946854,0.00041,120]
[422146478,1778619051000,-2000.0,0.00041,60]
[422146479,1778619051000,-2500.0,0.00041,30]
[422146484,1778619051000,-100000.0,0.00041,10]
[422146482,1778619051000,-200.0,0.00041,17]
[422146480,1778619051000,-15000.0,0.00041,120]
[422146481,1778619051000,-5000.0,0.00041,42]
[422146487,1778619051000,-298.346545,0.00041,30]
[422146488,1778619051000,-151.0,0.00041,30]
[422146491,1778619051000,-327.548371,0.00041,30]
[422146490,1778619051000,-208.839071,0.00041,30]
[422146492,1778619051000,-327.548371,0.00041,30]
[422146489,1778619051000,-151.0,0.00041,30]
[422146498,1778619051000,-151.0,0.00041,30]
[422146495,1778619051000,-151.0,0.00041,30]
[422146494,1778619051000,-327.548371,0.00041,30]
[422146493,1778619051000,-327.548371,0.00041,30]
[422146499,1778619051000,-597.427521,0.00041,7]
[422146497,1778619051000,-151.0,0.00041,30]
[422146496,1778619051000,-151.0,0.00041,30]
[422146501,1778619051000,-597.427521,0.00041,7]
[422146435,1778619051000,-180.54,0.00040555,30]
[422146464,1778619051000,-1000.0,0.00040933,10]
[422146471,1778619051000,-505.13,0.00041,11]
[422146500,1778619051000,-597.427521,0.00041,7]
[422146465,1778619051000,-2339.0,0.00040945,11]
[422146473,1778619051000,-1000000.0,0.00041,120]
[422146444,1778619051000,-1000.0,0.00040796,10]
[422146443,1778619051000,-528.649166,0.00040778,10]
[422146442,1778619051000,-157.71229644,0.00040722,2]
[422146448,1778619051000,-25000.0,0.00040836,15]
[422146458,1778619051000,-391.03726837,0.00040888,120]
[422146459,1778619051000,-58562.34360392,0.000409,120]
[422146447,1778619051000,-25000.0,0.00040827,15]
[422146456,1778619051000,-25000.0,0.00040863,15]
[422146453,1778619051000,-255.0,0.00040861,120]
[422146457,1778619051000,-165.0,0.00040884,11]
[422146449,1778619051000,-25000.0,0.00040845,15]
[422146450,1778619051000,-25000.0,0.00040854,15]
[422146441,1778619051000,-1815.17,0.00040717,120]
[422146452,1778619051000,-4382.1,0.00040861,120]
[422146472,1778619051000,-1743.88245732,0.00041,30]
[422146468,1778619051000,-2977.57538362,0.00040989,40]
[422146470,1778619051000,-1000.0,0.00040999,120]
[422146463,1778619051000,-2309.0,0.00040912,11]
[422146454,1778619051000,-811.97,0.00040861,120]
[422146466,1778619051000,-272443.0,0.0004095,60]
[422146469,1778619051000,-157.71229644,0.00040996,2]
[422146461,1778619051000,-599.999999,0.000409,120]
[422146462,1778619051000,-3300.0,0.000409,14]
[422146460,1778619051000,-23031.330999,0.000409,30]
[422146455,1778619051000,-3381.99,0.00040861,120]
[422146451,1778619051000,-25000.0,0.0004086,15]
[422146467,1778619051000,-163.80098366,0.0004098,120]
[422146542,1778619052000,-151.0,0.00041096,7]
[422146543,1778619052000,-151.0,0.00041096,7]
[422146538,1778619052000,-7283.54622967,0.00041095,5]
[422146539,1778619052000,-199.0,0.00041096,30]
[422146534,1778619052000,-4327.28,0.00041076,2]
[422146541,1778619052000,-167.05111765,0.00041096,2]
[422146537,1778619052000,-193.66311047,0.00041092,2]
[422146533,1778619052000,-1000.0,0.0004107,10]
[422146531,1778619052000,-1815.17,0.00041045,120]
[422146532,1778619052000,-287.87294419,0.00041064,2]
[422146540,1778619052000,-1562.0,0.00041096,120]
[422146545,1778619052000,-151.0,0.00041096,7]
[422146549,1778619052000,-151.0,0.00041096,120]
[422146547,1778619052000,-151.0,0.00041096,7]
[422146548,1778619052000,-214.401417,0.00041096,7]
[422146544,1778619052000,-151.0,0.00041096,7]
[422146550,1778619052000,-151.0,0.00041096,120]
[422146561,1778619052000,-151.0,0.00041096,120]
[422146560,1778619052000,-1557.527589,0.00041096,20]
[422146551,1778619052000,-151.0,0.00041096,120]
[422146552,1778619052000,-151.0,0.00041096,120]
[422146553,1778619052000,-151.0,0.00041096,120]
[422146554,1778619052000,-151.0,0.00041096,120]
[422146557,1778619052000,-151.0,0.00041096,120]
[422146535,1778619052000,-320.65636828,0.00041084,2]
[422146558,1778619052000,-1557.527589,0.00041096,20]
[422146546,1778619052000,-151.0,0.00041096,7]
[422146530,1778619052000,-151.0,0.00041,30]
[422146517,1778619052000,-151.0,0.00041,30]
[422146528,1778619052000,-188.583381,0.00041,30]
[422146556,1778619052000,-1557.527589,0.00041096,20]
[422146512,1778619052000,-1154.057842,0.00041,28]
[422146513,1778619052000,-1154.057842,0.00041,28]
[422146503,1778619052000,-448.648598,0.00041,30]
[422146502,1778619052000,-597.427521,0.00041,7]
[422146505,1778619052000,-151.0,0.00041,30]
[422146506,1778619052000,-448.648598,0.00041,30]
[422146504,1778619052000,-448.648598,0.00041,30]
[422146508,1778619052000,-151.0,0.00041,30]
[422146510,1778619052000,-151.0,0.00041,30]
[422146509,1778619052000,-448.648598,0.00041,30]
[422146507,1778619052000,-151.0,0.00041,30]
[422146529,1778619052000,-151.0,0.00041,30]
[422146514,1778619052000,-1154.057842,0.00041,28]
[422146520,1778619052000,-225.902096,0.00041,30]
[422146518,1778619052000,-151.0,0.00041,30]
[422146519,1778619052000,-151.0,0.00041,30]
[422146516,1778619052000,-151.0,0.00041,30]
[422146523,1778619052000,-225.902096,0.00041,30]
[422146521,1778619052000,-225.902096,0.00041,30]
[422146524,1778619052000,-151.0,0.00041,30]
[422146522,1778619052000,-225.902096,0.00041,30]
[422146536,1778619052000,-227.1808725,0.00041084,2]
[422146526,1778619052000,-151.0,0.00041,30]
[422146525,1778619052000,-151.0,0.00041,30]
[422146527,1778619052000,-151.0,0.00041,30]
[422146515,1778619052000,-1154.057842,0.00041,28]
[422146555,1778619052000,-151.0,0.00041096,120]
[422146511,1778619052000,-151.0,0.00041,30]
[422146562,1778619052000,-151.0,0.00041096,120]
[422146593,1778619052000,-499.931776,0.00041096,120]
[422146594,1778619052000,-499.931776,0.00041096,120]
[422146596,1778619052000,-499.931776,0.00041096,120]
[422146607,1778619052000,-226.128836,0.00041096,120]
[422146601,1778619052000,-226.128836,0.00041096,120]
[422146598,1778619052000,-226.128836,0.00041096,120]
[422146597,1778619052000,-499.931776,0.00041096,120]
[422146599,1778619052000,-226.128836,0.00041096,120]
[422146600,1778619052000,-226.128836,0.00041096,120]
[422146605,1778619052000,-226.128836,0.00041096,120]
[422146604,1778619052000,-226.128836,0.00041096,120]
[422146606,1778619052000,-226.128836,0.00041096,120]
[422146595,1778619052000,-499.931776,0.00041096,120]
[422146602,1778619052000,-226.128836,0.00041096,120]
[422146609,1778619052000,-226.128836,0.00041096,120]
[422146619,1778619052000,-912.67522,0.00041096,120]
[422146608,1778619052000,-226.128836,0.00041096,120]
[422146610,1778619052000,-912.67522,0.00041096,120]
[422146616,1778619052000,-912.67522,0.00041096,120]
[422146611,1778619052000,-912.67522,0.00041096,120]
[422146613,1778619052000,-912.67522,0.00041096,120]
[422146612,1778619052000,-912.67522,0.00041096,120]
[422146614,1778619052000,-912.67522,0.00041096,120]
[422146615,1778619052000,-912.67522,0.00041096,120]
[422146618,1778619052000,-912.67522,0.00041096,120]
[422146617,1778619052000,-912.67522,0.00041096,120]
[422146603,1778619052000,-226.128836,0.00041096,120]
[422146592,1778619052000,-499.931776,0.00041096,120]
[422146559,1778619052000,-151.0,0.00041096,120]
[422146590,1778619052000,-499.931776,0.00041096,120]
[422146563,1778619052000,-1557.527589,0.00041096,20]
[422146564,1778619052000,-151.0,0.00041096,120]
[422146574,1778619052000,-1105.864447,0.00041096,120]
[422146566,1778619052000,-1557.527589,0.00041096,20]
[422146569,1778619052000,-1557.527589,0.00041096,20]
[422146570,1778619052000,-1557.527589,0.00041096,20]
[422146568,1778619052000,-1557.527589,0.00041096,20]
[422146591,1778619052000,-499.931776,0.00041096,120]
[422146573,1778619052000,-1105.864447,0.00041096,120]
[422146567,1778619052000,-1557.527589,0.00041096,20]
[422146571,1778619052000,-1557.527589,0.00041096,20]
[422146572,1778619052000,-1557.527589,0.00041096,20]
[422146576,1778619052000,-1105.864447,0.00041096,120]
[422146565,1778619052000,-1557.527589,0.00041096,20]
[422146584,1778619052000,-1105.864447,0.00041096,120]
[422146585,1778619052000,-215.526239,0.00041096,120]
[422146588,1778619052000,-499.931776,0.00041096,120]
[422146582,1778619052000,-1105.864447,0.00041096,120]
[422146583,1778619052000,-1105.864447,0.00041096,120]
[422146575,1778619052000,-1105.864447,0.00041096,120]
[422146587,1778619052000,-499.931776,0.00041096,120]
[422146589,1778619052000,-499.931776,0.00041096,120]
[422146577,1778619052000,-1105.864447,0.00041096,120]
[422146578,1778619052000,-1105.864447,0.00041096,120]
[422146586,1778619052000,-499.931776,0.00041096,120]
[422146581,1778619052000,-1105.864447,0.00041096,120]
[422146579,1778619052000,-1105.864447,0.00041096,120]
[422146580,1778619052000,-1105.864447,0.00041096,120]
[422146666,1778619053000,-164.0,0.00041176,21]
[422146668,1778619053000,-810.29038564,0.00041178,30]
[422146661,1778619053000,-343.4541601,0.00041144,2]
[422146658,1778619053000,-198.34152229,0.00041133,2]
[422146656,1778619053000,-241.2266233,0.00041131,2]
[422146653,1778619053000,-369.16896658,0.00041118,2]
[422146651,1778619053000,-171.54072548,0.00041118,2]
[422146654,1778619053000,-395.16823233,0.00041123,120]
[422146649,1778619053000,-374.99024466,0.00041116,2]
[422146657,1778619053000,-274.26595005,0.00041132,60]
[422146655,1778619053000,-152.0,0.00041125,8]
[422146663,1778619053000,-190.51879669,0.00041145,2]
[422146677,1778619053000,-491.513,0.000412,120]
[422146667,1778619053000,-150.0,0.00041178,30]
[422146664,1778619053000,-342.41490759,0.00041161,2]
[422146662,1778619053000,-350.40403086,0.00041144,2]
[422146659,1778619053000,-395.16823233,0.00041137,120]
[422146665,1778619053000,-192.50206514,0.00041163,2]
[422146670,1778619053000,-4676.12137838,0.00041178,30]
[422146679,1778619053000,-1000.0,0.00041207,14]
[422146669,1778619053000,-150.0,0.00041178,30]
[422146671,1778619053000,-150.0,0.00041178,30]
[422146680,1778619053000,-62000.0,0.0004121,120]
[422146672,1778619053000,-373.62124569,0.00041178,30]
[422146674,1778619053000,-2803.44591517,0.000412,120]
[422146650,1778619053000,-320.58803403,0.00041118,2]
[422146660,1778619053000,-156.34906884,0.00041143,2]
[422146652,1778619053000,-338.43150361,0.00041118,2]
[422146636,1778619053000,-280.0,0.00041096,120]
[422146647,1778619053000,-395.16823233,0.0004111,120]
[422146673,1778619053000,-12551.51,0.000412,120]
[422146621,1778619053000,-912.67522,0.00041096,120]